[Event "Klubbmästerskap 2025 Torsdagar"]
[Site "Linköping, Sweden"]
[Date "2025.03.20"]
[Round "7.9"]
[White "Nyberg, Peter"]
[Black "Pavlic, Oliver"]
[Result "1/2-1/2"]
[TimeControl "90 min + 30 sec/move"]
[WhiteElo "1972"]
[BlackElo "1950"]

1. c4 {[%clk 01:30:57]} e5 {[%clk 01:30:46]} {[%emt 00:00:14]} 2. Nc3 {[%clk
01:31:09]} {[%emt 00:00:18]} Bb4 {[%clk 01:31:08]} {[%emt 00:00:08]} 3. Nd5
{[%clk 01:31:04]} {[%emt 00:00:35]} Be7 {[%clk 01:31:27]} {[%emt 00:00:10]} 4.
g3 {[%clk 01:17:32]} {[%emt 00:14:03]} Nf6 {[%clk 01:31:39]} {[%emt 00:00:18]}
5. Nxf6+ {[%clk 01:12:01]} {[%emt 00:06:02]} Bxf6 {[%clk 01:32:06]} {[%emt
00:00:02]} 6. Bg2 {[%clk 01:12:18]} {[%emt 00:00:14]} O-O {[%clk 01:32:04]}
{[%emt 00:00:32]} 7. e4 {[%clk 01:12:17]} {[%emt 00:00:31]} d6 {[%clk
01:31:53]} {[%emt 00:00:40]} 8. Ne2 {[%clk 01:12:37]} {[%emt 00:00:11]} Nc6
{[%clk 01:28:31]} {[%emt 00:03:50]} 9. O-O {[%clk 01:11:14]} {[%emt 00:01:55]}
Be6 {[%clk 01:27:21]} {[%emt 00:01:40]} 10. d3 {[%clk 01:11:24]} {[%emt
00:00:20]} Qd7 {[%clk 01:23:40]} {[%emt 00:04:11]} 11. f4 {[%clk 01:10:05]}
{[%emt 00:01:49]} Bg4 {[%clk 01:21:42]} {[%emt 00:02:28]} 12. Qe1 {[%clk
01:09:48]} {[%emt 00:00:47]} Bxe2 {[%clk 01:20:57]} {[%emt 00:01:15]} 13. Qxe2
{[%clk 01:10:17]} {[%emt 00:00:01]} Nd4 {[%clk 01:19:27]} {[%emt 00:02:00]} 14.
Qf2 {[%clk 01:08:09]} {[%emt 00:02:37]} exf4 {[%clk 01:18:39]} {[%emt
00:01:18]} 15. Bxf4 {[%clk 01:02:53]} {[%emt 00:05:46]} Be5 {[%clk 01:18:54]}
{[%emt 00:00:14]} 16. Be3 {[%clk 00:59:49]} {[%emt 00:03:36]} c5 {[%clk
01:19:08]} {[%emt 00:00:16]} 17. Kh1 {[%clk 00:59:41]} {[%emt 00:00:38]} Rab8
{[%clk 01:16:04]} {[%emt 00:03:34]} 18. Rad1 {[%clk 00:52:16]} {[%emt
00:07:54]} b5 {[%clk 01:12:46]} {[%emt 00:03:48]} 19. cxb5 {[%clk 00:42:36]}
{[%emt 00:10:11]} Rxb5 {[%clk 01:11:51]} {[%emt 00:01:25]} 20. Rd2 {[%clk
00:39:53]} {[%emt 00:03:13]} Qe6 {[%clk 01:05:59]} {[%emt 00:06:22]} 1/2-1/2